bitfinex-derivatives/quotes_ETHF0:USTF0_20250626
["timestamp","ask_amount","ask_price","bid_price","bid_amount"]
[1750965308080,0.82316,2428.8,2428.7,31.686]
[1750965309088,0.82316,2428.8,2428.7,32.5092]
[1750965309386,0.82316,2428.8,2428.7,31.686]
[1750965310074,1.52236,2428.8,2428.7,31.686]
[1750965311081,0.8232,2428.7,2428.6,0.7247]
[1750965311283,0.8232,2428.7,2428.6,32.4057]
[1750965312071,0.8232,2428.7,2428.5,2.35598548]
[1750965312277,0.8233,2428.4,2428.3,2.46579933]
[1750965312587,0.82337,2428.2,2428.1,27.63279933]
[1750965314781,0.82337,2428.2,2428.1,25.167]
[1750965315086,2.058,2428.7,2428.1,31.79400012]
[1750965315287,0.82332,2428.4,2428.3,0.82333]
[1750965315486,0.82332,2428.4,2428.3,25.98933]
[1750965315686,0.82332,2428.4,2428.3,26.70283]
[1750965315887,0.82327,2428.5,2428.4,0.82328]
[1750965316184,0.82324,2428.6,2428.4,0.82327]
[1750965316385,0.82324,2428.6,2428.5,25.99126]
[1750965316688,1.77441598,2428.6,2428.5,25.99126]
[1750965316886,1.77441598,2428.6,2428.5,25.168]
[1750965319391,1.7728275,2428.6,2428.5,25.168]
[1750965320692,1.7728275,2428.6,2428.5,25.99126]
[1750965321086,1.7728275,2428.6,2428.5,25.168]
[1750965321784,0.9495875,2428.6,2428.5,25.99126]
[1750965322494,0.9495875,2428.6,2428.5,29.41046012]
[1750965322696,0.9495875,2428.6,2428.5,35.92446012]
[1750965323194,1.4078,2429.1,2428.5,37.15934012]
[1750965323487,1.7724033,2429.0,2428.9,0.82313]
[1750965323687,1.7724033,2429.0,2428.9,25.99013]
[1750965323890,1.7723733,2429.0,2428.9,26.66293]
[1750965325699,1.7723733,2429.0,2428.9,25.8398]
[1750965325889,0.82316,2428.8,2428.7,1.5191]
[1750965326090,0.82316,2428.8,2428.7,33.1991]
[1750965326594,0.82316,2428.8,2428.7,1.5191]
[1750965326794,0.82316,2428.8,2428.7,33.1991]
[1750965328090,0.82316,2428.8,2428.7,32.3759]
[1750965328286,2.05784,2428.9,2428.5,5.67359933]
[1750965328593,0.82323,2428.6,2428.5,12.18759933]
[1750965328895,0.82323,2428.6,2428.5,37.35259933]
[1750965329193,2.20353,2428.6,2428.5,6.514]
[1750965332500,3.15254098,2428.6,2428.5,6.514]
[1750965334100,1.77224098,2428.6,2428.5,6.514]
[1750965334495,0.82323,2428.6,2428.5,6.514]
[1750965334897,1.77215981,2428.6,2428.5,6.514]
[1750965337203,0.94892981,2428.6,2428.5,10.75646012]
[1750965337396,0.6775,2429.0,2428.5,11.37010012]
[1750965337593,1.77253532,2428.9,2428.8,0.82315]
[1750965337796,1.77253532,2428.9,2428.7,6.62700012]
[1750965337797,0.82316,2428.8,2428.7,4.71178]
[1750965338100,1.77254532,2428.8,2428.7,35.5666]
[1750965338298,1.77254532,2428.8,2428.7,36.3898]
[1750965339612,1.77254532,2428.8,2428.7,35.5666]
[1750965339906,0.82316,2428.8,2428.7,36.3898]
[1750965340703,0.6775,2429.0,2428.8,0.82315]
[1750965340704,0.82315,2428.9,2428.8,0.82315]
[1750965340907,0.82316,2428.8,2428.7,36.38977]
[1750965341310,0.82316,2428.8,2428.7,35.5666]
[1750965341607,0.82316,2428.8,2428.7,31.678]
[1750965343409,2.44283359,2429.4,2428.7,38.30500012]
[1750965343613,1.4341,2429.3,2428.7,39.64120012]
[1750965343812,1.4341,2429.3,2429.0,0.82307]
[1750965343813,1.77202979,2429.2,2429.0,0.82307]
[1750965344006,0.94896979,2429.1,2429.0,25.98507]
[1750965344208,1.77202979,2429.1,2429.0,25.98507]
[1750965344715,0.94896979,2429.1,2429.0,32.49607]
[1750965344905,0.94896979,2429.1,2429.0,35.70387]
[1750965345211,0.82298,2429.4,2429.3,0.82299]
[1750965345402,0.94869831,2429.4,2429.3,32.49599]
[1750965345602,0.94869831,2429.4,2429.3,35.91519012]
[1750965345799,0.94869831,2429.4,2429.3,40.91519012]
[1750965346010,3.2078,2429.8,2429.7,0.82286]
[1750965346214,3.2078,2429.8,2429.7,32.49486]
[1750965346806,3.2078,2429.8,2429.7,35.91406012]
[1750965347103,1.54554,2430.1,2429.7,39.68270012]
[1750965347104,2.44283359,2430.1,2429.7,39.68270012]
[1750965347416,0.82274,2430.1,2429.9,0.82277]
[1750965347615,0.82274,2430.1,2430.0,31.672]
[1750965347816,1.54281,2430.2,2430.0,32.49476]
[1750965348007,0.82272,2430.1,2430.0,32.49474]
[1750965348515,1.54281,2430.2,2430.1,0.82272]
[1750965348811,3.2078,2430.3,2430.0,31.672]
[1750965349014,0.82271,2430.2,2430.0,32.49474]
[1750965349217,3.2078,2430.3,2430.0,31.672]
[1750965349411,0.82272,2430.1,2430.0,31.672]
[1750965349715,4.24192012,2430.1,2430.0,31.666]
[1750965350413,3.41920012,2430.1,2429.7,3.2078]
[1750965350603,3.41920012,2429.9,2429.8,25.156]
[1750965350915,4.24199012,2429.9,2429.8,25.156]
[1750965351118,4.90869012,2429.9,2429.8,25.156]
[1750965351314,6.30799012,2429.9,2429.8,25.156]
[1750965351507,2.88879,2429.9,2429.8,25.156]
[1750965354511,1.48949,2429.9,2429.8,25.156]
[1750965354712,0.82279,2429.9,2429.8,25.156]
[1750965354911,0.82279,2429.9,2429.8,25.97882]
[1750965355116,1.53817,2430.0,2429.9,0.82279]
[1750965355322,0.8227,2430.2,2429.9,3.41920012]
[1750965355520,4.03047,2430.3,2430.1,0.82269]
[1750965355814,4.03047,2430.3,2430.2,25.97569]
[1750965356315,3.2078,2430.3,2430.2,25.97569]
[1750965356517,4.03045,2430.3,2430.2,25.153]
[1750965356718,0.82264,2430.4,2430.2,25.97569]
[1750965357220,0.82264,2430.4,2430.2,25.153]
[1750965357517,0.6795,2430.5,2430.2,25.153]
[1750965357518,0.82265,2430.3,2430.2,25.153]
[1750965357820,0.82263,2430.4,2430.2,25.97567]
[1750965358208,0.82263,2430.4,2430.3,6.509]
[1750965358413,0.82263,2430.4,2430.3,7.33165]
[1750965358715,0.82263,2430.4,2430.3,6.509]
[1750965359117,0.82263,2430.4,2430.3,7.33165]
[1750965359320,1.50211,2430.5,2430.4,0.82262]
[1750965359520,0.6795,2430.5,2430.4,25.97262]
[1750965359823,0.82259,2430.5,2430.4,25.97262]
[1750965360018,3.2078,2430.7,2430.6,0.82255]
[1750965360219,0.82239,2431.1,2430.6,31.659]
[1750965360519,3.9285,2431.3,2430.8,0.82248]
[1750965360520,0.82244,2431.0,2430.8,0.82248]
[1750965360714,0.82239,2431.1,2430.9,32.48743]
[1750965361221,1.55827,2431.2,2431.0,0.82242]
[1750965361415,0.82238,2431.1,2431.0,0.82242]
[1750965361615,1.55827,2431.2,2431.1,0.82238]
[1750965362015,0.82242,2431.0,2430.9,32.48743]
[1750965362215,2.126,2431.2,2430.9,31.665]
[1750965362415,2.126,2431.2,2430.9,32.48743]
[1750965362416,0.8224,2431.1,2430.9,32.48743]
[1750965362616,0.82242,2431.0,2430.9,32.48743]
[1750965362924,0.82241,2431.1,2430.9,32.48743]
[1750965363124,0.82242,2431.0,2430.9,32.48744]
[1750965363323,0.8224,2431.1,2431.0,0.82241]
[1750965363620,0.8224,2431.1,2430.9,32.48743]
[1750965363826,0.82242,2431.0,2430.9,31.665]
[1750965364719,2.126,2431.2,2431.0,0.82242]
[1750965364920,2.126,2431.2,2431.1,25.145]
[1750965365126,2.21245,2431.2,2431.1,25.96738]
[1750965365326,2.27344,2431.3,2431.1,25.96738]
[1750965365518,0.82235,2431.2,2431.1,25.145]
[1750965366324,0.82235,2431.2,2431.1,25.96738]
[1750965366526,0.82235,2431.2,2431.1,25.145]
[1750965368627,0.82235,2431.2,2431.1,25.96738]
[1750965369329,0.82235,2431.2,2431.1,25.145]
[1750965369529,2.17215,2431.2,2431.1,25.145]
[1750965369827,2.17215,2431.2,2431.1,25.96738]
[1750965370326,1.4511,2431.3,2431.2,0.82235]
[1750965370518,1.3498,2431.6,2431.5,0.82225]
[1750965370719,0.8222,2431.7,2431.6,0.82221]
[1750965370918,0.82222,2431.6,2431.5,7.32823]
[1750965371731,0.8222,2431.7,2431.6,0.82221]
[1750965372035,0.6699,2431.9,2431.7,0.82216]
[1750965372322,1.49203,2431.9,2431.8,0.82215]
[1750965372531,0.6699,2431.9,2431.6,25.14]
[1750965372737,1.49203,2431.9,2431.8,0.82215]
[1750965373030,2.44283359,2432.7,2431.8,5.26318]
[1750965373222,3.17893359,2432.8,2432.2,3.2078]
[1750965373422,0.822,2432.3,2432.0,2.1389]
[1750965373631,0.822,2432.3,2432.1,32.60104]
[1750965373831,0.82198,2432.3,2432.1,32.60103]
[1750965374232,6.45410137,2432.2,2431.6,3.2078]
[1750965374423,3.2078,2431.7,2431.2,3.2078]
[1750965374622,0.82242,2431.0,2430.9,1.62255056]
[1750965374930,9.66190137,2431.4,2430.8,25.338]
[1750965374931,0.82245,2430.9,2430.8,25.338]
[1750965375321,0.82249,2430.8,2430.7,3.2078]
[1750965375724,0.82248,2430.9,2430.7,3.2078]
[1750965375931,9.66190137,2431.1,2430.7,4.0303]
[1750965375932,2.95934,2431.0,2430.7,4.0303]
[1750965376224,0.7118,2431.3,2430.7,35.0568]
[1750965376425,0.82237,2431.2,2430.9,0.82242]
[1750965376635,0.82238,2431.1,2431.0,31.854]
[1750965377037,0.82236,2431.2,2431.0,31.854]
[1750965377334,0.82232,2431.3,2431.1,0.82236]
[1750965377535,2.95918,2431.5,2431.2,0.82233]
[1750965377729,1.55438,2431.5,2431.2,0.82233]
[1750965377930,1.55438,2431.5,2431.3,0.82231]
[1750965378233,0.82228,2431.4,2431.1,2.84966]
[1750965378436,0.82228,2431.4,2431.2,0.82234]
[1750965378735,0.82228,2431.4,2431.1,2.84966]
[1750965379029,0.7321,2431.5,2431.1,2.0273]
[1750965379335,0.82229,2431.4,2431.2,0.82234]
[1750965379733,1.55437,2431.5,2431.2,0.82234]
[1750965379936,1.3396,2431.8,2431.1,2.0273]
[1750965380232,0.94287125,2431.7,2431.2,0.82233]
[1750965380425,0.82229,2431.4,2431.2,0.82233]
[1750965381435,0.82232,2431.3,2431.1,2.16806]
[1750965381630,0.82232,2431.3,2431.2,0.82235]
[1750965381833,0.82231,2431.4,2431.2,0.82235]
[1750965382127,0.82232,2431.3,2431.2,0.82235]
[1750965382632,0.7084,2431.5,2431.2,0.82235]
[1750965382633,0.8223,2431.4,2431.2,0.82235]
[1750965382822,0.82232,2431.3,2431.2,0.82235]
[1750965383535,0.82232,2431.3,2431.1,2.16807]
[1750965384734,0.82231,2431.4,2431.3,0.82232]
[1750965385037,0.82235,2431.2,2431.1,2.16807]
[1750965385329,1.457,2431.4,2431.0,3.2078]
[1750965385536,0.82235,2431.2,2431.0,3.2078]
[1750965385833,0.82237,2431.2,2431.0,4.0302]
[1750965386032,0.82238,2431.1,2431.0,4.0302]
[1750965386230,0.7143,2431.8,2431.7,0.82218]
[1750965386430,2.2791,2432.0,2431.8,0.82213]
[1750965386627,0.94602641,2431.9,2431.8,0.82213]
[1750965386832,0.94602641,2431.9,2431.8,1.55273]
[1750965387627,0.82209,2432.0,2431.9,0.82211]
[1750965387836,0.94646432,2432.2,2431.8,0.7306]
[1750965388028,0.82215,2431.8,2431.7,3.2078]
[1750965388334,0.82215,2431.8,2431.7,28.5818]
[1750965388532,0.82215,2431.8,2431.7,3.2078]
[1750965388833,13.15279137,2432.1,2431.4,25.375]
[1750965388834,0.82225,2431.5,2431.4,28.5828]
[1750965389637,7.27635137,2431.5,2431.4,3.2078]
[1750965389836,8.71205137,2431.5,2431.4,3.2078]
[1750965390341,0.82235,2431.2,2431.1,31.893]
[1750965391539,0.82233,2431.3,2431.2,0.82235]
[1750965391844,0.82235,2431.2,2431.1,32.71537]
[1750965392236,0.82233,2431.3,2431.2,0.82234]
[1750965392434,0.8223,2431.4,2431.2,0.82234]
[1750965392840,0.82232,2431.3,2431.1,32.71536]
[1750965393040,0.82231,2431.4,2431.3,0.82232]
[1750965393245,2.17334,2431.6,2431.4,0.82226]
[1750965393439,2.17334,2431.6,2431.5,0.82225]
[1750965393638,1.3511,2431.6,2431.5,0.82225]
[1750965393839,2.43808918,2431.6,2431.5,0.82225]
[1750965394345,2.43808918,2431.6,2431.4,0.82226]
[1750965394346,0.82225,2431.5,2431.4,0.82226]
[1750965395043,1.77032744,2431.5,2431.4,0.82226]
[1750965395938,0.94807744,2431.5,2431.4,0.82226]
[1750965396539,1.77032744,2431.5,2431.4,0.82226]
[1750965396841,0.94807744,2431.5,2431.4,0.82226]
[1750965397240,0.94807744,2431.5,2431.4,32.70226]
[1750965397445,0.94807744,2431.5,2431.4,34.07346]
[1750965398240,0.94807744,2431.5,2431.4,45.52756137]
[1750965398455,3.26485359,2432.2,2432.1,0.82205]
[1750965398742,0.94830759,2432.2,2432.1,0.82205]
[1750965398943,1.77031759,2432.2,2432.1,0.82205]
[1750965399645,0.82205,2432.1,2432.0,0.82206]
[1750965399839,0.94830759,2432.1,2431.9,35.0898]
[1750965400152,0.94830759,2432.0,2431.9,35.91191]
[1750965401849,0.94830759,2432.0,2431.9,37.37581]
[1750965404242,3.49065,2432.6,2431.9,37.37581]
[1750965404243,0.82199,2432.3,2432.2,0.82199]
[1750965404547,1.76969712,2432.3,2432.2,25.365]
[1750965405155,0.94770712,2432.3,2432.2,25.365]
[1750965405345,0.94770712,2432.3,2432.2,26.18701]
[1750965406550,4.6599,2432.7,2432.2,25.365]
[1750965406751,0.94642907,2432.6,2432.5,0.82191]
[1750965407044,0.94642907,2432.6,2432.5,26.23591]
[1750965407349,1.76830907,2432.6,2432.5,26.23591]
[1750965407539,0.94642907,2432.6,2432.5,26.23591]
[1750965409248,1.76830907,2432.6,2432.5,25.414]
[1750965409449,1.76830907,2432.6,2432.5,26.23591]
[1750965410052,1.76830907,2432.6,2432.5,25.414]
[1750965410351,0.82188,2432.6,2432.5,26.23591]
[1750965412248,0.82188,2432.6,2432.5,25.414]
[1750965412953,0.82188,2432.6,2432.5,26.23591]
[1750965413452,0.82188,2432.6,2432.5,25.414]
[1750965414156,0.82188,2432.6,2432.5,26.23591]
[1750965414951,0.7306,2432.7,2432.5,25.414]
[1750965415248,1.55244,2432.7,2432.6,0.82188]
[1750965415454,0.82179,2432.9,2432.8,0.82179]
[1750965415647,1.76785867,2432.9,2432.8,26.19279]
[1750965415847,1.76785867,2432.9,2432.8,25.371]
[1750965416152,0.82179,2432.9,2432.8,25.371]
[1750965417063,0.82179,2432.9,2432.8,26.19281]
[1750965417254,1.54326,2433.0,2432.9,0.82178]
[1750965417557,2.48909244,2433.0,2432.8,26.19278]
[1750965417756,0.82184,2432.7,2432.6,3.2078]
[1750965417950,1.4272,2432.9,2432.4,25.362]
[1750965418151,0.82182,2432.8,2432.6,0.82188]
[1750965418460,1.4272,2432.9,2432.7,0.82184]
[1750965418657,1.54325,2433.0,2432.6,3.2078]
[1750965418850,0.82178,2432.9,2432.8,0.82179]
[1750965419052,0.82178,2432.9,2432.8,26.18079]
[1750965419258,0.82178,2432.9,2432.8,25.359]
[1750965419453,0.7215,2433.0,2432.9,0.82178]
[1750965419654,1.48583,2433.1,2433.0,0.82174]
[1750965419957,0.82174,2433.0,2432.9,1.55215]
[1750965420161,1.48582,2433.1,2433.0,0.82174]
[1750965420353,1.48582,2433.1,2432.9,1.55215]
[1750965420554,0.82174,2433.0,2432.9,0.7304]
[1750965421051,0.6641,2433.1,2432.9,0.7304]
[1750965421052,0.6641,2433.1,2433.0,0.82174]
[1750965421263,2.1502,2433.3,2433.0,0.82174]
[1750965421457,0.94533416,2433.2,2433.1,32.81271]
[1750965421664,0.7213,2433.4,2433.1,32.81271]
[1750965421856,0.82167,2433.2,2433.1,31.991]
[1750965422455,0.82166,2433.3,2433.2,0.82166]
[1750965422753,0.82167,2433.2,2433.1,31.991]
[1750965422954,1.54294,2433.4,2433.2,0.82166]
[1750965423155,0.82164,2433.3,2433.2,0.82166]
[1750965423457,0.82165,2433.3,2433.2,0.82165]
[1750965423756,0.7213,2433.4,2433.3,0.82164]
[1750965423964,0.7115,2433.6,2433.1,31.991]
[1750965424162,0.82159,2433.5,2433.4,0.82158]
[1750965424363,1.4449,2433.6,2433.3,7.45762]
[1750965424364,0.82161,2433.4,2433.3,7.45762]
[1750965424560,0.82159,2433.5,2433.4,0.82159]
[1750965424763,0.7334,2433.6,2433.5,0.82157]
[1750965425055,3.2078,2433.9,2433.3,34.088]
[1750965425367,0.82154,2433.6,2433.5,0.82156]
[1750965425757,0.82153,2433.7,2433.5,0.82156]
[1750965425960,0.82153,2433.7,2433.6,25.356]
[1750965426564,0.82151,2433.7,2433.6,25.349]
[1750965427768,0.82164,2433.3,2433.2,3.2078]
[1750965428068,0.82164,2433.3,2433.2,35.1958]
[1750965428268,0.82164,2433.3,2433.2,36.01747]
[1750965428563,0.82164,2433.3,2433.2,35.1928]
[1750965428964,0.82162,2433.4,2433.2,3.2078]
[1750965429179,0.7041,2433.8,2433.3,33.50772]
[1750965429469,0.82156,2433.6,2433.4,0.82161]
[1750965429663,1.52559,2433.8,2433.3,40.58703869]
[1750965429865,1.52559,2433.8,2433.6,0.82151]
[1750965430069,1.52559,2433.8,2433.7,25.348]
[1750965430268,1.52559,2433.8,2433.7,26.16951]
[1750965430969,1.52559,2433.8,2433.7,25.348]
[1750965431171,1.52559,2433.8,2433.7,26.16951]
[1750965431565,0.82149,2433.8,2433.7,26.16951]
[1750965431768,2.05297,2434.7,2433.7,40.1898]
[1750965431968,0.82129,2434.4,2434.2,0.82133]
[1750965432166,0.82129,2434.4,2434.3,26.1763]
[1750965432570,3.2078,2434.8,2434.3,32.40824]
[1750965432767,3.2078,2434.8,2434.6,0.82118]
[1750965433067,0.94171542,2434.7,2434.4,3.9211]
[1750965433266,4.02895,2434.8,2434.5,32.87622]
[1750965433467,3.2078,2434.8,2434.7,0.82117]
[1750965433662,3.2078,2434.8,2434.5,32.055]
[1750965433869,3.2078,2434.8,2434.6,0.82119]
[1750965434176,0.82111,2434.9,2434.5,32.055]
[1750965434477,2.0897,2435.1,2434.5,32.055]
[1750965434774,0.8212,2434.6,2434.5,32.055]
[1750965434975,0.82122,2434.6,2434.5,32.053]
[1750965437580,2.1186,2434.8,2434.5,32.031]
[1750965437777,0.82134,2434.2,2434.1,3.2078]
[1750965437976,0.82134,2434.2,2434.1,35.2378]
[1750965438677,0.82134,2434.2,2434.1,35.2648]
[1750965440879,0.82134,2434.2,2434.1,25.389]
[1750965441679,0.82147,2433.8,2433.7,3.2078]
[1750965441977,0.8214,2434.1,2433.9,0.82141]
[1750965442172,0.8214,2434.1,2434.0,25.385]
[1750965442374,0.82136,2434.2,2434.0,26.2064]
[1750965442680,3.2078,2434.3,2434.0,25.385]
[1750965442882,0.82137,2434.2,2434.0,26.20639]
[1750965443184,0.82137,2434.1,2434.0,26.20639]
[1750965443476,4.5822,2434.3,2434.0,25.385]
[1750965443780,4.5822,2434.3,2434.1,6.658]
[1750965443981,5.40351,2434.3,2434.2,0.82134]
[1750965444276,4.5822,2434.3,2434.2,0.82134]
[1750965444676,3.2078,2434.3,2434.2,0.82134]
[1750965444886,1.3522,2434.4,2434.3,0.8213]
[1750965445082,2.17347,2434.4,2434.3,26.2033]
[1750965445778,0.82112,2434.9,2434.3,42.08195869]
[1750965446081,0.82112,2434.9,2434.8,0.82113]
[1750965446280,0.82112,2434.9,2434.8,32.155]
[1750965446684,0.82117,2434.7,2434.6,3.2078]
[1750965446982,0.82117,2434.7,2434.6,35.3598]
[1750965447484,1.52257,2434.7,2434.6,35.3598]
[1750965447886,0.82117,2434.8,2434.6,36.181]
[1750965448182,0.82116,2434.8,2434.6,36.181]
[1750965448685,0.82116,2434.8,2434.7,0.82117]
[1750965448877,0.82116,2434.8,2434.6,36.18098]
[1750965449083,0.94562281,2434.8,2434.7,0.82117]
[1750965449986,1.76675281,2434.8,2434.6,36.18098]
[1750965450279,1.76679281,2434.7,2434.6,3.2078]
[1750965450480,1.76679281,2434.7,2434.6,35.3358]
[1750965450879,1.76679281,2434.7,2434.6,3.2078]
[1750965451084,0.82134,2434.2,2434.1,0.717]
[1750965451278,0.82134,2434.2,2434.1,32.126]
[1750965451484,0.82134,2434.2,2434.1,6.658]
[1750965451686,0.82147,2433.8,2433.7,6.658]
[1750965451878,0.82145,2433.9,2433.7,6.658]
[1750965452086,0.82147,2433.8,2433.7,6.658]
[1750965452288,1.49557,2433.8,2433.7,6.658]
[1750965452685,2.91777,2433.8,2433.7,6.658]
[1750965452884,2.91777,2433.8,2433.4,3.2078]
[1750965452885,2.0963,2433.8,2433.4,9.8658]
[1750965453082,0.82156,2433.6,2433.4,10.68739]
[1750965453386,0.82153,2433.7,2433.5,0.82157]
[1750965453781,0.82153,2433.7,2433.5,3.28736933]
[1750965453983,0.82154,2433.6,2433.5,2.46579933]
[1750965454389,0.82153,2433.7,2433.5,3.28736933]
[1750965454586,2.91779,2433.8,2433.6,0.82154]
[1750965454789,2.91779,2433.8,2433.5,2.46579933]
[1750965454790,0.82151,2433.7,2433.5,3.28734933]
[1750965455489,0.82154,2433.6,2433.5,2.46579933]
[1750965456391,0.82154,2433.6,2433.5,3.28736933]
[1750965457190,0.82154,2433.6,2433.5,2.46579933]
[1750965457388,0.82153,2433.7,2433.4,9.8658]
[1750965457587,0.82153,2433.7,2433.6,2.43282345]
[1750965458591,0.6741,2433.8,2433.6,27.88782345]
[1750965458790,0.6741,2433.8,2433.7,0.82151]
[1750965458987,3.2078,2434.0,2433.9,0.82144]
[1750965459579,0.82137,2434.1,2434.0,0.82137]
[1750965460291,1.49447,2434.1,2434.0,0.82137]
[1750965460789,0.6731,2434.1,2434.0,0.82137]
[1750965461086,4.0291,2434.4,2434.3,0.8213]
[1750965461286,4.02908,2434.4,2434.2,0.82132]
[1750965461485,4.02908,2434.4,2434.2,0.82131]
[1750965461681,0.82134,2434.2,2434.1,1.411]
[1750965461886,0.82134,2434.2,2434.1,0.82137]
[1750965462087,0.82132,2434.3,2434.2,0.82133]
[1750965462397,3.2078,2434.4,2434.0,5.64062345]
[1750965462695,0.82131,2434.3,2434.2,0.82131]
[1750965462884,0.82131,2434.3,2434.2,7.48031]
[1750965463085,0.82131,2434.3,2434.2,6.659]
[1750965463493,1.7717964,2434.3,2434.2,6.659]
[1750965464193,0.82144,2433.9,2433.8,6.697]
[1750965464590,1.7719264,2433.9,2433.8,6.697]
[1750965464792,0.82144,2433.9,2433.8,6.697]
[1750965466094,0.82142,2434.0,2433.9,0.82143]
[1750965466294,0.7058,2434.2,2433.8,6.697]
[1750965466495,0.82144,2434.0,2433.8,8.96386]
[1750965466698,0.82144,2434.0,2433.9,0.82144]
[1750965466994,0.82144,2434.0,2433.8,7.51845]
[1750965467194,0.82144,2434.0,2433.9,0.82144]
[1750965467390,0.7058,2434.2,2433.8,6.697]
[1750965467590,1.52715,2434.2,2434.1,0.82137]
[1750965467896,1.77181227,2434.2,2434.1,0.82137]
[1750965468097,1.77181227,2434.2,2434.0,26.30238]
[1750965468295,0.95046227,2434.1,2434.0,26.30238]
[1750965468998,0.95046227,2434.1,2434.0,27.74778]
[1750965470198,1.77183227,2434.1,2434.0,27.74778]
[1750965470497,0.95046227,2434.1,2434.0,27.74778]
[1750965471097,0.82125,2434.5,2434.4,0.82127]
[1750965471397,0.94759142,2434.5,2434.4,7.51827]
[1750965471693,1.76883142,2434.5,2434.4,7.51827]
[1750965471899,1.76883142,2434.5,2434.4,6.697]
[1750965472599,1.76883142,2434.5,2434.4,7.51827]
[1750965473100,0.94759142,2434.5,2434.4,7.51827]
[1750965473788,0.94759142,2434.5,2434.4,8.87427]
[1750965474202,10.59433011,2434.5,2433.6,3.2078]
[1750965474391,0.94759142,2434.4,2433.9,9.64673869]
[1750965474702,0.94759142,2434.3,2434.2,4.02914]
[1750965477504,1.76889142,2434.3,2434.2,3.2078]
[1750965477802,0.94759142,2434.3,2434.2,4.02914]
[1750965480605,0.82119,2434.7,2434.6,0.8212]
[1750965480799,0.8212,2434.6,2434.5,36.23301]
[1750965481002,1.76839804,2434.6,2434.5,35.4118]
[1750965481504,0.94719804,2434.6,2434.5,36.23304]
[1750965481904,0.94719804,2434.6,2434.5,37.61494]
[1750965482405,0.94719804,2434.6,2434.5,36.23304]
[1750965482706,1.76839804,2434.6,2434.5,35.4118]
[1750965483109,1.76839804,2434.6,2434.5,35.4058]
[1750965486211,0.94719804,2434.6,2434.5,36.22704]
[1750965487006,0.82119,2434.7,2434.6,0.8212]
[1750965489313,0.82117,2434.7,2434.6,0.8212]
[1750965489513,2.0928,2435.0,2434.5,35.4058]
[1750965489716,0.82117,2434.7,2434.6,0.82118]
[1750965490105,0.8212,2434.6,2434.5,3.2078]
[1750965490305,0.82129,2434.4,2434.3,32.161]
[1750965490506,2.23275,2434.5,2434.4,0.82127]
[1750965490713,0.82127,2434.4,2434.3,32.98228]
[1750965490912,0.82127,2434.4,2434.3,6.696]
[1750965491218,0.82127,2434.4,2434.3,32.169]
[1750965491219,2.20957,2434.4,2434.3,32.169]
[1750965492717,1.3883,2434.4,2434.3,32.9903]
[1750965493415,0.82116,2434.8,2434.7,0.82115]
[1750965493615,2.46175464,2434.8,2434.7,0.82115]
[1750965494316,1.64059464,2434.8,2434.7,0.82115]
[1750965495410,2.46172464,2434.8,2434.7,0.82115]
[1750965496424,3.92692464,2434.8,2434.7,0.82115]
[1750965496818,3.10579464,2434.8,2434.7,0.82115]
[1750965497124,1.64059464,2434.8,2434.7,7.52515]
[1750965497319,2.46172464,2434.8,2434.7,6.704]
[1750965497625,3.05439464,2434.8,2434.7,7.52517]
[1750965499323,3.87552464,2434.8,2434.7,7.52517]
[1750965499724,2.92943,2434.8,2434.7,7.52517]
[1750965499926,3.8772417,2434.8,2434.7,7.52517]
[1750965501125,3.0561117,2434.8,2434.7,7.52517]
[1750965501326,0.9478117,2434.8,2434.7,7.52517]
[1750965501726,0.9478117,2434.8,2434.7,7.85834184]
[1750965502330,0.9478117,2434.8,2434.7,7.52517]
[1750965503322,0.9478117,2434.8,2434.7,17.17190869]
[1750965503517,0.82113,2434.9,2434.8,0.82113]
[1750965503721,1.76897229,2434.9,2434.8,32.96913]
[1750965504122,0.82113,2434.9,2434.8,32.96913]
[1750965504629,1.7646174,2434.9,2434.8,32.96913]
[1750965505018,3.1036174,2434.9,2434.8,32.96913]
[1750965506134,2.2824874,2434.9,2434.8,32.96913]
[1750965506428,1.339,2434.9,2434.8,32.96913]
[1750965507627,2.1601,2434.9,2434.8,32.96913]
[1750965507830,1.339,2434.9,2434.8,32.96913]
[1750965508223,0.683,2435.0,2434.9,0.8211]
[1750965509332,3.2078,2435.2,2435.1,0.82103]
[1750965509532,4.15101044,2435.2,2435.1,0.82103]
[1750965511132,0.82108,2435.0,2434.9,0.82108]
[1750965511336,0.82108,2435.0,2434.9,32.94008]
[1750965511630,2.88205,2435.1,2434.9,32.119]
[1750965511829,2.88205,2435.1,2435.0,0.82107]
[1750965512031,3.00411828,2435.1,2435.0,0.82107]
[1750965513032,3.82514828,2435.1,2435.0,0.82107]
[1750965514135,0.82107,2435.0,2434.9,32.94008]
[1750965514638,1.76429495,2435.0,2434.9,32.119]
[1750965514830,10.7657357,2435.0,2434.4,3.2078]
[1750965515131,4.22155075,2434.5,2434.4,3.2078]
[1750965515335,0.82121,2434.6,2434.4,3.2078]
[1750965515521,0.82124,2434.5,2434.4,3.2078]
[1750965515726,0.82124,2434.5,2434.4,4.02907]
[1750965515927,0.82124,2434.5,2434.4,3.2078]
[1750965516126,0.82124,2434.5,2434.4,4.02907]
[1750965517036,0.82124,2434.5,2434.4,3.2078]
[1750965517736,0.82124,2434.5,2434.4,4.02907]
[1750965518237,0.82124,2434.5,2434.4,3.2078]
[1750965518426,0.82124,2434.5,2434.4,4.02907]
[1750965518734,0.82122,2434.6,2434.5,0.82123]
[1750965518929,0.6806,2434.9,2434.5,5.8331342]